fUST/lending_fUST_20260310
["ID","MTS","AMOUNT","RATE_DAILY","PERIOD"]
[408066777,1773101446317,-151.0,0.00013699,2]
[408066778,1773101446326,-151.0,0.00013699,2]
[408066779,1773101446336,-151.0,0.00013699,2]
[408066780,1773101446346,-1000.0,0.00013699,2]
[408066781,1773101446355,-571.7,0.00013699,2]
[408066782,1773101446366,-500.0,0.00013699,2]
[408066783,1773101446375,-540.23285392,0.00013699,2]
[408066784,1773101446385,-151.0,0.000137,2]
[408066785,1773101446395,-151.0,0.000137,2]
[408066786,1773101446404,-69.23360296,0.000137,2]
[408066827,1773102632233,-985.05018441,9.265e-05,2]
[408066829,1773102632245,-1098.26144718,9.265e-05,2]
[408066831,1773102632254,-2336.82200726,9.359e-05,2]
[408066833,1773102632266,-597.0,9.359e-05,2]
[408066835,1773102632277,-741.02164246,9.359e-05,2]
[408067134,1773102638257,-1325.15635028,9.359e-05,2]
[408067136,1773102638266,-258.71042246,9.453e-05,2]
[408067138,1773102638277,-941.28957754,9.453e-05,2]
[408067140,1773102638286,-5000.0,9.454e-05,2]
[408067142,1773102638295,-552.0,9.454e-05,2]
[408067144,1773102638304,-300.0,9.644e-05,2]
[408067146,1773102638313,-300.0,9.644e-05,2]
[408067148,1773102638322,-185.75149226,9.89e-05,2]
[408067151,1773102638331,-945.60816135,0.00010221,2]
[408067153,1773102638340,-2249.16562601,0.00010321,2]
[408067155,1773102638349,-1138.73441056,0.00010398,2]
[408067157,1773102638360,-417.821,0.00010398,2]
[408067159,1773102638371,-123.44458944,0.00010398,2]
[408067161,1773102638380,-1845.45541055,0.00010398,2]
[408067408,1773102640956,-1178.52779707,0.00010398,2]
[408067629,1773102643313,-570.0,9.265e-05,2]
[408067836,1773102646106,-4430.0,9.265e-05,2]
[408067838,1773102646116,-2848.44668816,0.00010398,2]
[408067849,1773102646213,-5627.83037386,0.00010398,2]
[408068528,1773102728045,1000.48,0.000102,120]
[408068530,1773102755956,1000.0,0.000102,120]
[408068581,1773103832184,-2465.49937987,8.572e-05,2]
[408068583,1773103832196,-834.71197419,8.572e-05,2]
[408068777,1773103838325,-3548.0911428,8.486e-05,2]
[408068778,1773103838335,-1324.77167394,8.572e-05,2]
[408068779,1773103838348,-540.0,8.572e-05,2]
[408068780,1773103838357,-758.0,8.658e-05,2]
[408068781,1773103838367,-186.34945557,8.703e-05,2]
[408068782,1773103838376,-159.494275,9.575e-05,2]
[408068783,1773103838386,-300.0,0.00010419,2]
[408068784,1773103838396,-3182.08018294,0.00010421,2]
[408068785,1773103838405,-50000.0,0.00010556,2]
[408068786,1773103838414,-732.0,0.00010556,2]
[408068787,1773103838424,-435.0,0.00010556,2]
[408068788,1773103838434,-639.0,0.00010556,2]
[408068789,1773103838443,-1391.0,0.00010556,2]
[408068790,1773103838452,-2190.0,0.00010556,2]
[408068791,1773103838461,-229.789,0.00010556,2]
[408068792,1773103838471,-208.41,0.00010556,2]
[408068793,1773103838480,-3780.7610662,0.00010621,2]
[408068794,1773103838492,-227.04356305,0.00010621,2]
[408068795,1773103838503,-219.89235757,0.00010703,2]
[408068796,1773103838512,-362.16717938,0.00010719,2]
[408068797,1773103838525,-3079.0901781,0.00010719,2]
[408068798,1773103838536,-4833.52907569,0.00010721,2]
[408068799,1773103838549,-376.5556878,0.00010821,2]
[408068800,1773103838559,-4856.28055534,0.00010821,2]
[408068801,1773103838569,-1347.16,0.00010959,2]
[408068802,1773103838579,-151.0,0.00011081,2]
[408068803,1773103838590,-151.0,0.00011081,2]
[408068804,1773103838601,-20845.1588533,0.00011081,2]
[408068805,1773103838610,-154.93,0.000111,2]
[408068806,1773103838620,-411.875,0.00011182,2]
[408068807,1773103838631,-161.53526232,0.00012365,2]
[408068808,1773103838640,-787.0,0.000125,2]
[408068809,1773103838650,-460.8923571,0.000126,2]
[408068810,1773103838659,-253.43525957,0.00012703,2]
[408068811,1773103838669,-500.0,0.00012892,2]
[408068812,1773103838680,-532.35129047,0.00012949,2]
[408068813,1773103838690,-151.0,0.0001295,2]
[408068814,1773103838699,-1957.856,0.0001295,2]
[408068815,1773103838708,-300.14580638,0.0001295,2]
[408068816,1773103838719,-156.587,0.0001295,2]
[408068817,1773103838730,-162.380719,0.0001295,2]
[408068818,1773103838739,-168.3888056,0.0001295,2]
[408068819,1773103838749,-174.61919141,0.0001295,2]
[408068820,1773103838761,-181.08010149,0.0001295,2]
[408068821,1773103838771,-187.78006525,0.0001295,2]
[408068822,1773103838780,-194.72792766,0.0001295,2]
[408068823,1773103838789,-201.93286099,0.0001295,2]
[408068824,1773103838799,-162.380719,0.0001295,2]
[408068825,1773103838809,-209.40437684,0.0001295,2]
[408068826,1773103838819,-168.3888056,0.0001295,2]
[408068827,1773103838829,-217.15233878,0.0001295,2]
[408068828,1773103838838,-174.61919141,0.0001295,2]
[408068829,1773103838848,-225.18697532,0.0001295,2]
[408068830,1773103838857,-181.08010149,0.0001295,2]
[408068831,1773103838866,-233.51889341,0.0001295,2]
[408068832,1773103838875,-187.78006525,0.0001295,2]
[408068833,1773103838885,-242.15909246,0.0001295,2]
[408068834,1773103838896,-194.72792766,0.0001295,2]
[408068835,1773103838906,-251.11897888,0.0001295,2]
[408068836,1773103838915,-201.93286099,0.0001295,2]
[408068837,1773103838924,-500.0,0.0001295,2]
[408068838,1773103838933,-260.4103811,0.0001295,2]
[408068839,1773103838943,-209.40437684,0.0001295,2]
[408068840,1773103838953,-285.16156984,0.0001295,2]
[408068861,1773103840855,-214.83843016,0.0001295,2]
[408068862,1773103840865,-270.0455652,0.0001295,2]
[408068863,1773103840875,-356.64188861,0.0001295,2]
[408068864,1773103840909,-143.35811139,0.0001295,2]
[408068865,1773103840919,-217.15233878,0.0001295,2]
[408068866,1773103840928,-500.0,0.0001295,2]
[408068867,1773103840937,-225.18697532,0.0001295,2]
[408068868,1773103840946,-280.03725112,0.0001295,2]
[408068869,1773103840956,-326.96532339,0.0001295,2]
[408068879,1773103843511,-173.03467661,0.0001295,2]
[408068880,1773103843521,-233.51889341,0.0001295,2]
[408068881,1773103843532,-290.39862941,0.0001295,2]
[408068882,1773103843541,-110.03907611,0.0001295,2]
[408068883,1773103843552,-389.96092389,0.0001295,2]
[408068884,1773103843561,-242.15909246,0.0001295,2]
[408068885,1773103843571,-301.1433787,0.0001295,2]
[408068886,1773103843580,-500.0,0.0001295,2]
[408068887,1773103843590,-251.11897888,0.0001295,2]
[408068888,1773103843600,-500.0,0.0001295,2]
[408068889,1773103843610,-34.23661306,0.0001295,2]
[408068890,1773103843621,-226.17376804,0.0001295,2]
[408068891,1773103843631,-500.0,0.0001295,2]
[408068892,1773103843641,-270.0455652,0.0001295,2]
[408068893,1773103843652,-1463.66143281,0.0001295,2]
[408068895,1773103843931,-687.07656719,0.0001295,2]
[408068896,1773103843941,-500.0,0.0001295,2]
[408068897,1773103843953,-280.03725112,0.0001295,2]
[408068898,1773103843963,-500.0,0.0001295,2]
[408068899,1773103843972,-290.39862941,0.0001295,2]
[408068900,1773103843981,-500.0,0.0001295,2]
[408068901,1773103843991,-302.5348521,0.0001295,2]
[408068902,1773103844000,-500.0,0.0001295,2]
[408068903,1773103844010,-500.0,0.0001295,2]
[408068904,1773103844020,-500.0,0.0001295,2]
[408068905,1773103844030,-27.01847648,0.0001295,2]
[408068906,1773103844045,-398.11441907,0.0001295,2]
[408068907,1773103844060,-74.86710445,0.0001295,2]
[408068908,1773103844074,-500.0,0.0001295,2]
[408068909,1773103844094,-500.0,0.0001295,2]
[408068910,1773103844107,-537.6845,0.0001295,2]
[408068911,1773103844117,-151.0,0.00012952,2]
[408068912,1773103844125,-151.0,0.00012952,2]
[408068913,1773103844135,-151.0,0.00013,2]
[408068914,1773103844144,-2030.296672,0.00013005,2]
[408068915,1773103844153,-487.93785849,0.00013033,2]
[408068916,1773103844162,-170.87331566,0.0001306,2]
[408068917,1773103844174,-302.62139999,0.0001306,2]
[408068934,1773103846230,-1631.92293321,0.0001306,2]
[408068936,1773103846239,-151.0,0.000131,2]
[408068938,1773103846249,-151.0,0.000131,2]
[408068940,1773103846258,-151.0,0.000131,2]
[408068941,1773103846268,-151.0,0.000131,2]
[408068943,1773103846277,-1166.94294687,0.00013115,2]
[408068944,1773103846289,-983.43426962,0.00013115,2]
[408068947,1773103846300,-32.94088538,0.00013115,2]
[408068948,1773103846309,-2264.10087164,0.0001317,2]
[408068949,1773103846319,-151.0,0.000132,2]
[408068950,1773103846328,-151.0,0.000132,2]
[408068951,1773103846345,-151.0,0.000132,2]
[408068952,1773103846355,-151.0,0.000132,2]
[408068953,1773103846365,-2347.87260389,0.00013225,2]
[408068954,1773103846375,-151.0,0.00013227,2]
[408068955,1773103846384,-151.0,0.00013227,2]
[408068956,1773103846395,-2434.74389024,0.0001328,2]
[408068957,1773103846404,-151.0,0.000133,2]
[408068958,1773103846413,-151.0,0.000133,2]
[408068959,1773103846423,-151.0,0.000133,2]
[408068960,1773103846432,-151.0,0.000133,2]
[408068961,1773103846442,-2524.82941417,0.00013335,2]
[408068962,1773103846452,-1390.88258581,0.0001339,2]
[408068963,1773103846461,-151.0,0.000134,2]
[408068964,1773103846471,-151.0,0.000134,2]
[408068965,1773103846480,-151.0,0.000134,2]
[408068966,1773103846490,-151.0,0.000134,2]
[408068967,1773103846499,-6026.33560075,0.00013488,2]
[408068968,1773103846508,-2230.315306,0.00013498,2]
[408068969,1773103846518,-151.0,0.000135,2]
[408068970,1773103846527,-151.0,0.000135,2]
[408068971,1773103846537,-151.0,0.000135,2]
[408068972,1773103846546,-151.0,0.000135,2]
[408068973,1773103846556,-151.0,0.000135,2]
[408068974,1773103846565,-151.0,0.000135,2]
[408068975,1773103846574,-151.0,0.000135,2]
[408068976,1773103846583,-151.0,0.000135,2]
[408068977,1773103846593,-151.0,0.000135,2]
[408068978,1773103846602,-151.0,0.000135,2]
[408068979,1773103846611,-175.746242,0.000135,2]
[408068980,1773103846620,-151.0,0.000135,2]
[408068981,1773103846630,-151.0,0.000135,2]
[408068982,1773103846639,-151.0,0.000135,2]
[408068983,1773103846649,-151.0,0.000135,2]
[408068984,1773103846658,-84517.60659299,0.00013524,2]
[408068985,1773103846682,-17358.80346027,0.00013524,2]
[408068992,1773104158889,579.9,2.001e-05,2]
[408068993,1773104190354,773.3,2.001e-05,2]
[408068994,1773104218401,1230.4,2.001e-05,2]
[408068995,1773104245485,777.8,2.001e-05,2]
[408068996,1773104273210,1037.1,2.001e-05,2]
[408069003,1773104759138,-639.7578,4.95e-05,2]
[408069013,1773104969091,-4653.57471708,4.9e-05,2]
[408069014,1773104969111,-177.48184461,4.95e-05,2]
[408069015,1773104969131,-1664.3,5e-05,2]
[408069016,1773104969152,-1.28866662,6.95e-05,2]
[408069025,1773105002100,165.15,2e-05,2]
[408069040,1773105032319,-165.15,2.1e-05,2]
[408069041,1773105032329,-165.15,2.1e-05,2]
[408069043,1773105032339,-76.73070456,2.2e-05,2]
[408069045,1773105032351,-88.41929544,2.2e-05,2]
[408069046,1773105032360,-208.13991002,6.95e-05,2]
[408069048,1773105032370,-1037.1,8e-05,2]
[408069050,1773105032379,-300.0,8.949e-05,2]
[408069051,1773105032389,-300.0,8.949e-05,2]
[408069053,1773105032398,-155.0,8.949e-05,2]
[408069054,1773105032407,-1200.0,8.949e-05,2]
[408069056,1773105032416,-241.37530867,8.95e-05,2]
[408069058,1773105032425,-21060.58333309,8.95e-05,2]
[408069060,1773105032450,-2100.37719293,8.95e-05,2]
[408069072,1773105032563,-1006.81783792,8.95e-05,2]
[408069111,1773105038535,-3579.41366766,8.95e-05,2]
[408069118,1773105038592,-1160.22783125,8.95e-05,2]
[408069130,1773105038704,-9730.77146505,8.95e-05,2]
[408069351,1773105040986,-1180.75294969,8.95e-05,2]
[408069352,1773105040998,-5500.023309,8.95e-05,2]
[408069353,1773105041009,-4681.03241341,8.95e-05,2]
[408069354,1773105041019,-377.98760931,0.00010398,2]
[408069514,1773105043520,-57.01239069,0.00010398,2]
[408069515,1773105043529,-1391.0,0.00010869,2]
[408069516,1773105043538,-639.0,0.00010869,2]
[408069517,1773105043547,-2190.0,0.00010869,2]
[408069518,1773105043557,-732.0,0.00010869,2]
[408069519,1773105043565,-224.8687093,0.0001095,2]
[408069539,1773105046551,-48.4533314,0.0001095,2]
[408069540,1773105046561,-3000.0,0.000125,30]
[408069541,1773105046570,-153.0,0.000125,3]
[408069542,1773105046580,-153.0,0.000125,2]
[408069543,1773105046589,-3000.0,0.0001251,30]
[408069544,1773105046599,-329.5,0.0001251,2]
[408069545,1773105046608,-3000.0,0.0001252,30]
[408069546,1773105046617,-3000.0,0.0001253,30]
[408069547,1773105046627,-2125.27939283,0.0001254,30]
[408069548,1773105046641,-441.315,0.0001254,30]
[408069549,1773105046652,-1418.85553717,0.0001254,30]
[408069550,1773105046661,-500.0,0.00012735,2]
[408069551,1773105046671,-151.0,0.000128,2]
[408069552,1773105046681,-151.0,0.000128,2]
[408069553,1773105046692,-151.0,0.000129,2]
[408069554,1773105046702,-305.26877273,0.0001295,2]
[408069555,1773105046712,-1957.856,0.00012953,2]
[408069556,1773105046722,-2150.738,0.00012953,2]
[408069557,1773105046733,-151.0,0.00013,2]
[408069558,1773105046742,-151.0,0.00013,2]
[408069559,1773105046751,-160.0,0.00013,2]
[408069560,1773105046761,-153.0,0.00013,2]
[408069561,1773105046770,-2030.296672,0.00013008,2]
[408069562,1773105046780,-836.12712066,0.00013063,2]
[408069563,1773105046790,-151.0,0.000131,2]
[408069564,1773105046800,-151.0,0.000132,2]
[408069565,1773105046809,-151.0,0.000132,2]
[408069566,1773105046819,-151.0,0.000133,2]
[408069567,1773105046829,-153.0,0.000133,3]
[408069568,1773105046840,-154.58181636,0.000133,3]
[408069569,1773105046849,-151.0,0.00013316,2]
[408069570,1773105046858,-156.587,0.00013316,2]
[408069571,1773105046867,-162.380719,0.00013316,2]
[408069572,1773105046876,-168.3888056,0.00013316,2]
[408069573,1773105046885,-174.61919141,0.00013316,2]
[408069574,1773105046894,-181.08010149,0.00013316,2]
[408069575,1773105046903,-187.78006525,0.00013316,2]
[408069576,1773105046912,-194.72792766,0.00013316,2]
[408069577,1773105046922,-201.93286099,0.00013316,2]
[408069578,1773105046931,-209.40437684,0.00013316,2]
[408069579,1773105046941,-217.15233878,0.00013316,2]
[408069580,1773105046957,-225.18697532,0.00013316,2]
[408069581,1773105046978,-233.51889341,0.00013316,2]
[408069582,1773105046989,-242.15909246,0.00013316,2]
[408069583,1773105046998,-251.11897888,0.00013316,2]
[408069584,1773105047007,-260.4103811,0.00013316,2]
[408069585,1773105047017,-270.0455652,0.00013316,2]
[408069586,1773105047027,-280.03725112,0.00013316,2]
[408069587,1773105047037,-290.39862941,0.00013316,2]
[408069588,1773105047047,-301.1433787,0.00013316,2]
[408069589,1773105047056,-30646.09573152,0.00013324,2]
[408069600,1773105629910,1583.488,0.000102,120]
[408069604,1773105934129,-183.30191685,8.586e-05,2]
[408069624,1773106231506,-3083.37552296,8.587e-05,2]
[408069818,1773106242311,-3025.051694,8.5e-05,2]
[408069823,1773106242340,-3974.47067958,8.5e-05,2]
[408069831,1773106242376,-4737.35631481,8.5e-05,2]
[408069868,1773106246008,-68263.12131161,8.5e-05,2]
[408069869,1773106246017,-4725.33951902,8.501e-05,2]
[408069870,1773106246027,-540.0,8.587e-05,2]
[408069871,1773106246036,-166.89770784,8.63e-05,2]
[408069872,1773106246049,-209.01416511,8.849e-05,2]
[408069873,1773106246058,-196.93929525,0.0001063,2]
[408069874,1773106246067,-432.0,0.00011235,2]
[408069875,1773106246077,-1242.897266,0.00012285,2]
[408069876,1773106246086,-226.98088266,0.0001263,2]
[408069877,1773106246096,-284.0,0.00012673,2]
[408069878,1773106246106,-500.0,0.00012729,2]
[408069879,1773106246116,-500.0,0.00012801,2]
[408069880,1773106246126,-500.0,0.00012801,2]
[408069881,1773106246135,-500.0,0.00012801,2]
[408069882,1773106246146,-500.0,0.00012801,2]
[408069883,1773106246156,-500.0,0.00012801,2]
[408069884,1773106246165,-500.0,0.00012801,2]
[408069885,1773106246174,-431.36255539,0.00012801,2]
[408069886,1773106246183,-265.08072722,0.00012801,2]
[408069887,1773106246193,-500.0,0.00012801,2]
[408069888,1773106246202,-500.0,0.00012801,2]
[408069889,1773106246211,-237.530623,0.00012801,2]
[408069890,1773106246221,-300.0,0.00012801,2]
[408069891,1773106246230,-300.0,0.00012801,2]
[408069892,1773106246239,-300.0,0.00012801,2]
[408069893,1773106246248,-40067.01492996,0.00012802,2]
[408069894,1773106246264,-6941.10724371,0.00012802,2]
[408069895,1773106246623,-20.36687965,0.00012802,2]
[408069945,1773107431687,-5000.0,7.731e-05,2]
[408069946,1773107431697,-2035.35409629,7.809e-05,2]
[408069948,1773107431708,-706.95445939,7.809e-05,2]
[408069949,1773107431741,-425.97873272,7.809e-05,2]
[408070005,1773107438859,-1831.7127116,7.809e-05,2]
[408070006,1773107438868,-880.79039655,7.888e-05,2]
[408070007,1773107438889,-2602.85973535,7.888e-05,2]
[408070008,1773107438899,-531.0,7.888e-05,2]
[408070009,1773107438908,-206.0,8.313e-05,2]
[408070010,1773107438917,-300.0,8.397e-05,2]
[408070011,1773107438927,-300.0,8.397e-05,2]
[408070012,1773107438937,-300.0,8.483e-05,2]
[408070013,1773107438946,-177.8142751,8.517e-05,2]
[408070014,1773107438955,-1105.66894972,8.551e-05,2]
[408070015,1773107438964,-2169.04952002,8.651e-05,2]
[408070016,1773107438974,-2543.29912902,8.751e-05,2]
[408070017,1773107438983,-50000.0,9.109e-05,2]
[408070018,1773107438992,-160.0,9.134e-05,2]
[408070019,1773107439001,-248.61451367,9.246e-05,2]
[408070020,1773107439011,-629.08073948,9.246e-05,2]
[408070021,1773107439020,-500.0,9.246e-05,2]
[408070022,1773107439029,-500.0,9.246e-05,2]
[408070023,1773107439040,-500.0,9.246e-05,2]
[408070024,1773107439053,-500.0,9.246e-05,2]
[408070025,1773107439062,-500.0,9.246e-05,2]
[408070026,1773107439072,-500.0,9.246e-05,2]
[408070027,1773107439082,-500.0,9.246e-05,2]
[408070028,1773107439092,-500.0,9.246e-05,2]
[408070029,1773107439101,-500.0,9.246e-05,2]
[408070030,1773107439110,-500.0,9.246e-05,2]
[408070031,1773107439119,-500.0,9.246e-05,2]
[408070032,1773107439129,-500.0,9.246e-05,2]
[408070033,1773107439139,-371.77693502,9.246e-05,2]
[408070034,1773107439148,-500.0,9.246e-05,2]
[408070035,1773107439157,-495.14197896,9.246e-05,2]
[408070036,1773107439166,-500.0,9.246e-05,2]
[408070037,1773107439175,-500.0,9.246e-05,2]
[408070038,1773107439188,-333.42684031,9.246e-05,2]
[408070039,1773107439198,-500.0,9.246e-05,2]
[408070040,1773107439210,-500.0,9.246e-05,2]
[408070041,1773107439219,-500.0,9.246e-05,2]
[408070042,1773107439229,-500.0,9.246e-05,2]
[408070043,1773107439238,-500.0,9.246e-05,2]
[408070044,1773107439248,-500.0,9.246e-05,2]
[408070045,1773107439259,-500.0,9.246e-05,2]
[408070046,1773107439267,-500.0,9.246e-05,2]
[408070047,1773107439277,-500.0,9.246e-05,2]
[408070048,1773107439286,-500.0,9.246e-05,2]
[408070049,1773107439296,-500.0,9.246e-05,2]
[408070050,1773107439308,-500.0,9.246e-05,2]
[408070051,1773107439317,-500.0,9.246e-05,2]
[408070052,1773107439327,-500.0,9.246e-05,2]
[408070053,1773107439336,-500.0,9.246e-05,2]
[408070054,1773107439346,-500.0,9.246e-05,2]
[408070055,1773107439355,-500.0,9.246e-05,2]
[408070056,1773107439368,-500.0,9.246e-05,2]
[408070057,1773107439378,-500.0,9.246e-05,2]
[408070058,1773107439389,-500.0,9.246e-05,2]
[408070059,1773107439400,-500.0,9.246e-05,2]
[408070060,1773107439410,-500.0,9.246e-05,2]
[408070061,1773107439419,-500.0,9.246e-05,2]
[408070062,1773107439429,-500.0,9.246e-05,2]
[408070063,1773107439439,-500.0,9.246e-05,2]
[408070064,1773107439449,-500.0,9.246e-05,2]
[408070065,1773107439461,-500.0,9.246e-05,2]
[408070066,1773107439470,-500.0,9.246e-05,2]
[408070067,1773107439480,-500.0,9.246e-05,2]
[408070068,1773107439490,-264.38369561,9.246e-05,2]
[408070069,1773107439499,-500.0,9.246e-05,2]
[408070070,1773107439510,-500.0,9.246e-05,2]
[408070071,1773107439519,-500.0,9.246e-05,2]
[408070072,1773107439528,-500.0,9.246e-05,2]
[408070073,1773107439538,-292.21728205,9.246e-05,2]
[408070074,1773107439547,-500.0,9.246e-05,2]
[408070075,1773107439559,-500.0,9.246e-05,2]
[408070076,1773107439568,-500.0,9.246e-05,2]
[408070077,1773107439577,-500.0,9.246e-05,2]
[408070078,1773107439586,-500.0,9.246e-05,2]
[408070079,1773107439595,-500.0,9.246e-05,2]
[408070080,1773107439605,-500.0,9.246e-05,2]
[408070081,1773107439614,-500.0,9.246e-05,2]
[408070082,1773107439623,-500.0,9.246e-05,2]
[408070084,1773107439633,-500.0,9.246e-05,2]
[408070086,1773107439642,-500.0,9.246e-05,2]
[408070088,1773107439652,-500.0,9.246e-05,2]
[408070090,1773107439662,-500.0,9.246e-05,2]
[408070092,1773107439676,-500.0,9.246e-05,2]
[408070094,1773107439686,-500.0,9.246e-05,2]
[408070095,1773107439696,-500.0,9.246e-05,2]
[408070096,1773107439705,-500.0,9.246e-05,2]
[408070097,1773107439715,-500.0,9.246e-05,2]
[408070098,1773107439725,-500.0,9.246e-05,2]
[408070099,1773107439734,-500.0,9.246e-05,2]
[408070100,1773107439744,-500.0,9.246e-05,2]
[408070101,1773107439754,-500.0,9.246e-05,2]
[408070102,1773107439764,-500.0,9.246e-05,2]
[408070103,1773107439774,-500.0,9.246e-05,2]
[408070104,1773107439783,-500.0,9.246e-05,2]
[408070105,1773107439792,-500.0,9.246e-05,2]
[408070106,1773107439802,-500.0,9.246e-05,2]
[408070107,1773107439811,-500.0,9.246e-05,2]
[408070108,1773107439822,-500.0,9.246e-05,2]
[408070109,1773107439832,-803.40399554,9.246e-05,2]
[408070110,1773107439841,-500.0,9.246e-05,2]
[408070111,1773107439850,-500.0,9.246e-05,2]
[408070112,1773107439859,-803.40399554,9.246e-05,2]
[408070113,1773107439870,-500.0,9.246e-05,2]
[408070114,1773107439880,-803.40399554,9.246e-05,2]
[408070115,1773107439889,-500.0,9.246e-05,2]
[408070116,1773107439898,-803.40399554,9.246e-05,2]
[408070117,1773107439907,-500.0,9.246e-05,2]
[408070118,1773107439917,-803.40399554,9.246e-05,2]
[408070119,1773107439926,-803.40399554,9.246e-05,2]
[408070120,1773107439936,-500.0,9.246e-05,2]
[408070121,1773107439945,-803.40399554,9.246e-05,2]
[408070122,1773107439954,-500.0,9.246e-05,2]
[408070123,1773107439963,-500.0,9.246e-05,2]
[408070124,1773107439972,-803.40399554,9.246e-05,2]
[408070125,1773107439981,-803.40399554,9.246e-05,2]
[408070126,1773107439990,-500.0,9.246e-05,2]
[408070127,1773107439999,-500.0,9.246e-05,2]
[408070128,1773107440008,-803.40399554,9.246e-05,2]
[408070129,1773107440017,-500.0,9.246e-05,2]
[408070130,1773107440026,-803.40399554,9.246e-05,2]
[408070131,1773107440036,-500.0,9.246e-05,2]
[408070132,1773107440045,-803.40399554,9.246e-05,2]
[408070133,1773107440054,-500.0,9.246e-05,2]
[408070134,1773107440063,-803.40399554,9.246e-05,2]
[408070135,1773107440072,-500.0,9.246e-05,2]
[408070136,1773107440081,-803.40399554,9.246e-05,2]
[408070137,1773107440090,-803.40399554,9.246e-05,2]
[408070138,1773107440100,-500.0,9.246e-05,2]
[408070139,1773107440109,-803.40399554,9.246e-05,2]
[408070140,1773107440118,-803.40399554,9.246e-05,2]
[408070141,1773107440128,-803.40399554,9.246e-05,2]
[408070142,1773107440138,-803.40399554,9.246e-05,2]
[408070143,1773107440147,-803.40399554,9.246e-05,2]
[408070144,1773107440157,-803.40399554,9.246e-05,2]
[408070145,1773107440167,-803.40399554,9.246e-05,2]
[408070146,1773107440176,-803.40399554,9.246e-05,2]
[408070147,1773107440186,-803.40399554,9.246e-05,2]
[408070148,1773107440195,-803.40399554,9.246e-05,2]
[408070149,1773107440205,-500.0,9.246e-05,2]
[408070150,1773107440215,-803.40399554,9.246e-05,2]
[408070151,1773107440225,-803.40399554,9.246e-05,2]
[408070152,1773107440234,-500.0,9.246e-05,2]
[408070153,1773107440245,-803.40399554,9.246e-05,2]
[408070154,1773107440254,-500.0,9.246e-05,2]
[408070155,1773107440264,-803.40399554,9.246e-05,2]
[408070156,1773107440273,-500.0,9.246e-05,2]
[408070157,1773107440283,-500.0,9.246e-05,2]
[408070158,1773107440292,-500.0,9.246e-05,2]
[408070159,1773107440304,-803.40399554,9.246e-05,2]
[408070160,1773107440315,-803.40399554,9.246e-05,2]
[408070161,1773107440325,-500.0,9.246e-05,2]
[408070162,1773107440335,-500.0,9.246e-05,2]
[408070163,1773107440346,-803.40399554,9.246e-05,2]
[408070164,1773107440356,-500.0,9.246e-05,2]
[408070165,1773107440366,-803.40399554,9.246e-05,2]
[408070166,1773107440378,-803.40399554,9.246e-05,2]
[408070167,1773107440389,-500.0,9.246e-05,2]
[408070168,1773107440398,-803.40399554,9.246e-05,2]
[408070169,1773107440408,-500.0,9.246e-05,2]
[408070170,1773107440418,-500.0,9.246e-05,2]
[408070171,1773107440428,-803.40399554,9.246e-05,2]
[408070172,1773107440437,-803.40399554,9.246e-05,2]
[408070173,1773107440446,-500.0,9.246e-05,2]
[408070174,1773107440457,-803.40399554,9.246e-05,2]
[408070175,1773107440466,-500.0,9.246e-05,2]
[408070176,1773107440475,-803.40399554,9.246e-05,2]
[408070177,1773107440485,-803.40399554,9.246e-05,2]
[408070178,1773107440494,-500.0,9.246e-05,2]
[408070179,1773107440503,-803.40399554,9.246e-05,2]
[408070180,1773107440512,-803.40399554,9.246e-05,2]
[408070181,1773107440521,-803.40399554,9.246e-05,2]
[408070182,1773107440531,-418.74541543,9.246e-05,2]
[408070183,1773107440541,-803.40399554,9.246e-05,2]
[408070184,1773107440550,-803.40399554,9.246e-05,2]
[408070185,1773107440559,-500.0,9.246e-05,2]
[408070186,1773107440569,-500.0,9.246e-05,2]
[408070187,1773107440578,-787.78225118,9.246e-05,2]
[408070188,1773107440587,-500.0,9.246e-05,2]